fUSD/lending_fUSD_20240104
["ID","MTS","AMOUNT","RATE_DAILY","PERIOD"]
[310156223,1704384673741,-500.0,0.00033972,2]
[310156224,1704384673751,-559.43,0.00033972,2]
[310156225,1704384673761,-500.0,0.00033972,2]
[310156226,1704384673771,-500.0,0.00033972,2]
[310156227,1704384673781,-1026.82,0.00033972,2]
[310156228,1704384673791,-500.0,0.00033972,2]
[310156229,1704384673801,-500.0,0.00033972,2]
[310156230,1704384673811,-586.09,0.00033972,2]
[310156231,1704384673821,-574.52,0.00033972,2]
[310156232,1704384673830,-500.0,0.00033972,2]
[310156233,1704384673840,-622.68,0.00033972,2]
[310156234,1704384673849,-593.19,0.00033972,2]
[310156235,1704384673859,-633.75,0.00033972,2]
[310156236,1704384673868,-500.0,0.00033972,2]
[310156237,1704384673877,-731.33,0.00033972,2]
[310156238,1704384673888,-756.82,0.00033972,2]
[310156239,1704384673897,-500.0,0.00033972,2]
[310156240,1704384673907,-500.0,0.00033972,2]
[310156241,1704384673917,-500.0,0.00033972,2]
[310156242,1704384673928,-500.0,0.00033972,2]
[310156243,1704384673937,-500.0,0.00033972,2]
[310156244,1704384673947,-812.26,0.00033972,2]
[310156245,1704384673956,-642.48,0.00033972,2]
[310156246,1704384673965,-500.0,0.00033972,2]
[310156247,1704384673976,-500.0,0.00033972,2]
[310156248,1704384673985,-647.0,0.00033972,2]
[310156249,1704384673995,-995.06,0.00033972,2]
[310156250,1704384674005,-1428.61,0.00033972,2]
[310156251,1704384674015,-500.0,0.00033972,2]
[310156252,1704384674024,-737.41,0.00033972,2]
[310156253,1704384674034,-500.0,0.00033972,2]
[310156254,1704384674043,-500.0,0.00033972,2]
[310156255,1704384674053,-719.19,0.00033972,2]
[310156256,1704384674063,-500.0,0.00033972,2]
[310156257,1704384674073,-966.27,0.00033972,2]
[310156258,1704384674084,-500.0,0.00033972,2]
[310156259,1704384674093,-683.25,0.00033972,2]
[310156260,1704384674102,-708.7,0.00033972,2]
[310156261,1704384674111,-500.0,0.00033972,2]
[310156262,1704384674120,-1313.57,0.00033972,2]
[310156263,1704384674129,-500.0,0.00033972,2]
[310156264,1704384674138,-537.81,0.00033972,2]
[310156265,1704384674148,-978.7,0.00033972,2]
[310156266,1704384674157,-500.0,0.00033972,2]
[310156267,1704384674167,-251.89418763,0.00033972,2]
[310156268,1704384674177,-855.47,0.00033972,2]
[310156269,1704384674186,-500.0,0.00033972,2]
[310156270,1704384674196,-500.0,0.00033972,2]
[310156271,1704384674207,-500.0,0.00033972,2]
[310156272,1704384674217,-504.3,0.00033972,2]
[310156273,1704384674227,-758.78,0.00033972,2]
[310156274,1704384674237,-500.0,0.00033972,2]
[310156275,1704384674246,-500.0,0.00033972,2]
[310156276,1704384674256,-500.0,0.00033972,2]
[310156277,1704384674266,-500.0,0.00033972,2]
[310156278,1704384674275,-500.0,0.00033972,2]
[310156279,1704384674284,-500.0,0.00033972,2]
[310156280,1704384674294,-500.0,0.00033972,2]
[310156281,1704384674303,-1007.26,0.00033972,2]
[310156282,1704384674313,-500.0,0.00033972,2]
[310156283,1704384674323,-500.0,0.00033972,2]
[310156284,1704384674335,-500.0,0.00033972,2]
[310156285,1704384674345,-500.0,0.00033972,2]
[310156286,1704384674356,-691.87,0.00033972,2]
[310156287,1704384674366,-944.11,0.00033972,2]
[310156288,1704384674375,-1634.31,0.00033972,2]
[310156289,1704384674387,-500.0,0.00033972,2]
[310156290,1704384674397,-1332.99,0.00033972,2]
[310156291,1704384674406,-500.0,0.00033972,2]
[310156292,1704384674415,-500.0,0.00033972,2]
[310156293,1704384674425,-1233.69,0.00033972,2]
[310156294,1704384674435,-500.0,0.00033972,2]
[310156295,1704384674445,-1754.71,0.00033972,2]
[310156296,1704384674455,-650.36,0.00033972,2]
[310156297,1704384674465,-500.0,0.00033972,2]
[310156298,1704384674476,-602.68,0.00033972,2]
[310156299,1704384674486,-1493.68,0.00033972,2]
[310156300,1704384674495,-500.0,0.00033972,2]
[310156301,1704384674505,-500.0,0.00033972,2]
[310156302,1704384674516,-705.76,0.00033972,2]
[310156303,1704384674526,-1386.7,0.00033972,2]
[310156304,1704384674536,-1253.93,0.00033972,2]
[310156305,1704384674547,-500.0,0.00033972,2]
[310156306,1704384674557,-527.89293608,0.00033972,2]
[310156307,1704384674566,-712.45,0.00033972,2]
[310156308,1704384674576,-1385.49,0.00033972,2]
[310156309,1704384674588,-719.5,0.00033972,2]
[310156310,1704384674598,-795.9,0.00033972,2]
[310156311,1704384674609,-614.02,0.00033972,2]
[310156312,1704384674618,-500.0,0.00033972,2]
[310156313,1704384674627,-500.0,0.00033972,2]
[310156314,1704384674637,-702.74,0.00033972,2]
[310156315,1704384674646,-2346.06,0.00033972,2]
[310156316,1704384674658,-782.01,0.00033972,2]
[310156317,1704384674667,-1144.21,0.00033972,2]
[310156318,1704384674676,-500.0,0.00033972,2]
[310156319,1704384674686,-825.04,0.00033972,2]
[310156320,1704384674696,-759.74,0.00033972,2]
[310156321,1704384674708,-500.0,0.00033972,2]
[310156322,1704384674718,-591.92,0.00033972,2]
[310156323,1704384674729,-500.0,0.00033972,2]
[310156324,1704384674739,-1538.71,0.00033972,2]
[310156325,1704384674749,-500.0,0.00033972,2]
[310156326,1704384674759,-1209.37,0.00033972,2]
[310156327,1704384674770,-500.0,0.00033972,2]
[310156328,1704384674779,-1769.02,0.00033972,2]
[310156329,1704384674789,-500.0,0.00033972,2]
[310156330,1704384674799,-500.0,0.00033972,2]
[310156331,1704384674809,-597.26587403,0.00033972,2]
[310156332,1704384674819,-1608.02,0.00033972,2]
[310156333,1704384674830,-1312.71,0.00033972,2]
[310156334,1704384674839,-500.0,0.00033972,2]
[310156335,1704384674849,-500.0,0.00033972,2]
[310156336,1704384674858,-866.14,0.00033972,2]
[310156337,1704384674867,-3238.36,0.00033972,2]
[310156338,1704384674877,-597.7,0.00033972,2]
[310156339,1704384674887,-500.0,0.00033972,2]
[310156340,1704384674897,-758.49,0.00033972,2]
[310156341,1704384674907,-861.13,0.00033972,2]
[310156342,1704384674917,-554.04,0.00033972,2]
[310156343,1704384674927,-500.0,0.00033972,2]
[310156344,1704384674936,-500.0,0.00033972,2]
[310156345,1704384674946,-910.85,0.00033972,2]
[310156346,1704384674955,-596.22,0.00033972,2]
[310156347,1704384674965,-647.07,0.00033972,2]
[310156348,1704384674974,-840.62,0.00033972,2]
[310156349,1704384674984,-552.48,0.00033972,2]
[310156350,1704384674994,-859.39,0.00033972,2]
[310156351,1704384675003,-957.37,0.00033972,2]
[310156352,1704384675012,-500.0,0.00033972,2]
[310156353,1704384675022,-1225.89,0.00033972,2]
[310156354,1704384675031,-562.44,0.00033972,2]
[310156355,1704384675041,-765.17,0.00033972,2]
[310156356,1704384675050,-659.69,0.00033972,2]
[310156357,1704384675060,-500.0,0.00033972,2]
[310156358,1704384675069,-500.0,0.00033972,2]
[310156359,1704384675080,-1445.4,0.00033972,2]
[310156360,1704384675089,-704.58,0.00033972,2]
[310156361,1704384675099,-500.0,0.00033972,2]
[310156362,1704384675108,-616.78,0.00033972,2]
[310156363,1704384675119,-256.34795194,0.00033972,2]
[310156364,1704384675129,-683.51,0.00033972,2]
[310156365,1704384675138,-661.23,0.00033972,2]
[310156366,1704384675148,-529.83,0.00033972,2]
[310156367,1704384675158,-500.0,0.00033972,2]
[310156368,1704384675168,-500.0,0.00033972,2]
[310156369,1704384675178,-782.54,0.00033972,2]
[310156370,1704384675188,-588.15,0.00033972,2]
[310156371,1704384675197,-1195.11,0.00033972,2]
[310156372,1704384675207,-674.54,0.00033972,2]
[310156373,1704384675217,-1310.86,0.00033972,2]
[310156374,1704384675227,-831.54,0.00033972,2]
[310156375,1704384675236,-500.0,0.00033972,2]
[310156376,1704384675246,-500.0,0.00033972,2]
[310156377,1704384675255,-188.34415171,0.00033972,2]
[310156378,1704384675265,-1025.23,0.00033972,2]
[310156379,1704384675274,-1101.26,0.00033972,2]
[310156380,1704384675284,-785.28,0.00033972,2]
[310156381,1704384675294,-705.23,0.00033972,2]
[310156382,1704384675303,-1065.41,0.00033972,2]
[310156383,1704384675313,-500.0,0.00033972,2]
[310156384,1704384675322,-500.0,0.00033972,2]
[310156385,1704384675334,-1054.98,0.00033972,2]
[310156386,1704384675344,-500.0,0.00033972,2]
[310156387,1704384675353,-995.7,0.00033972,2]
[310156388,1704384675360,-744.22,0.00033972,2]
[310156389,1704384675369,-500.0,0.00033972,2]
[310156390,1704384675379,-1427.22,0.00033972,2]
[310156391,1704384675390,-1238.86,0.00033972,2]
[310156392,1704384675399,-742.23,0.00033972,2]
[310156393,1704384675408,-887.92,0.00033972,2]
[310156394,1704384675418,-666.3,0.00033972,2]
[310156395,1704384675427,-500.0,0.00033972,2]
[310156396,1704384675437,-907.32,0.00033972,2]
[310156397,1704384675448,-500.0,0.00033972,2]
[310156398,1704384675458,-702.86,0.00033972,2]
[310156399,1704384675468,-500.0,0.00033972,2]
[310156400,1704384675478,-500.0,0.00033972,2]
[310156401,1704384675487,-500.0,0.00033972,2]
[310156402,1704384675497,-945.74,0.00033972,2]
[310156403,1704384675507,-920.91,0.00033972,2]
[310156404,1704384675517,-500.0,0.00033972,2]
[310156405,1704384675526,-1400.63,0.00033972,2]
[310156406,1704384675536,-672.89,0.00033972,2]
[310156407,1704384675618,-535.81,0.00033972,2]
[310156408,1704384675629,-500.0,0.00033972,2]
[310156409,1704384675639,-500.0,0.00033972,2]
[310156410,1704384675648,-500.0,0.00033972,2]
[310156411,1704384675657,-500.0,0.00033972,2]
[310156412,1704384675667,-500.0,0.00033972,2]
[310156413,1704384675677,-750.79,0.00033972,2]
[310156414,1704384675687,-1057.28,0.00033972,2]
[310156415,1704384675696,-523.13,0.00033972,2]
[310156416,1704384675705,-500.0,0.00033972,2]
[310156417,1704384675715,-1335.29,0.00033972,2]
[310156418,1704384675725,-500.0,0.00033972,2]
[310156419,1704384675734,-878.66,0.00033972,2]
[310156420,1704384675744,-500.0,0.00033972,2]
[310156421,1704384675753,-1605.48,0.00033972,2]
[310156422,1704384675762,-500.0,0.00033972,2]
[310156423,1704384675773,-500.0,0.00033972,2]
[310156424,1704384675783,-500.0,0.00033972,2]
[310156425,1704384675792,-500.0,0.00033972,2]
[310156426,1704384675802,-1736.22,0.00033972,2]
[310156427,1704384675811,-500.0,0.00033972,2]
[310156428,1704384675820,-847.37,0.00033972,2]
[310156429,1704384675831,-762.22,0.00033972,2]
[310156430,1704384675840,-500.0,0.00033972,2]
[310156431,1704384675850,-668.67,0.00033972,2]
[310156432,1704384675859,-1025.7,0.00033972,2]
[310156433,1704384675869,-500.0,0.00033972,2]
[310156434,1704384675878,-500.0,0.00033972,2]
[310156435,1704384675888,-530.17,0.00033972,2]
[310156436,1704384675898,-500.0,0.00033972,2]
[310156437,1704384675907,-500.0,0.00033972,2]
[310156438,1704384675916,-790.72,0.00033972,2]
[310156439,1704384675926,-959.6,0.00033972,2]
[310156440,1704384675935,-500.0,0.00033972,2]
[310156441,1704384675946,-500.0,0.00033972,2]
[310156442,1704384675954,-516.03,0.00033972,2]
[310156443,1704384675963,-500.0,0.00033972,2]
[310156444,1704384675973,-506.97,0.00033972,2]
[310156445,1704384675982,-873.69,0.00033972,2]
[310156446,1704384675991,-500.0,0.00033972,2]
[310156447,1704384676003,-500.0,0.00033972,2]
[310156448,1704384676013,-1032.21,0.00033972,2]
[310156449,1704384676023,-529.99,0.00033972,2]
[310156450,1704384676033,-500.0,0.00033972,2]
[310156451,1704384676042,-917.61,0.00033972,2]
[310156452,1704384676051,-500.0,0.00033972,2]
[310156453,1704384676062,-500.0,0.00033972,2]
[310156454,1704384676071,-500.0,0.00033972,2]
[310156455,1704384676081,-610.7,0.00033972,2]
[310156456,1704384676090,-1220.03,0.00033972,2]
[310156457,1704384676100,-1169.06,0.00033972,2]
[310156458,1704384676109,-1607.98,0.00033972,2]
[310156459,1704384676119,-500.0,0.00033972,2]
[310156460,1704384676129,-534.36,0.00033972,2]
[310156461,1704384676138,-631.5,0.00033972,2]
[310156462,1704384676147,-1479.9,0.00033972,2]
[310156463,1704384676157,-1507.11,0.00033972,2]
[310156464,1704384676168,-680.74,0.00033972,2]
[310156465,1704384676178,-500.0,0.00033972,2]
[310156466,1704384676188,-500.0,0.00033972,2]
[310156467,1704384676197,-431.43417457,0.00033972,2]
[310156468,1704384676208,-2169.33,0.00033972,2]
[310156469,1704384676222,-2030.09,0.00033972,2]
[310156470,1704384676231,-263.12,0.00033972,2]
[310156471,1704384676241,-500.0,0.00033972,2]
[310156472,1704384676252,-500.0,0.00033972,2]
[310156473,1704384676262,-500.0,0.00033972,2]
[310156474,1704384676271,-822.67,0.00033972,2]
[310156475,1704384676281,-500.0,0.00033972,2]
[310156476,1704384676290,-500.0,0.00033972,2]
[310156477,1704384676299,-500.0,0.00033972,2]
[310156478,1704384676308,-3860.65,0.00033972,2]
[310156479,1704384676318,-1227.94,0.00033972,2]
[310156480,1704384676328,-1694.53,0.00033972,2]
[310156481,1704384676338,-500.0,0.00033972,2]
[310156482,1704384676347,-654.78,0.00033972,2]
[310156483,1704384676361,-675.26,0.00033972,2]
[310156484,1704384676370,-1024.69,0.00033972,2]
[310156485,1704384676380,-2166.67,0.00033972,2]
[310156486,1704384676389,-500.0,0.00033972,2]
[310156487,1704384676398,-500.0,0.00033972,2]
[310156488,1704384676407,-500.0,0.00033972,2]
[310156489,1704384676417,-644.95,0.00033972,2]
[310156490,1704384676426,-6237.21,0.00033972,2]
[310156491,1704384676435,-2236.13,0.00033972,2]
[310156492,1704384676445,-500.0,0.00033972,2]
[310156493,1704384676456,-500.0,0.00033972,2]
[310156494,1704384676465,-1565.67,0.00033972,2]
[310156495,1704384676475,-748.67,0.00033972,2]
[310156496,1704384676485,-1806.87,0.00033972,2]
[310156497,1704384676494,-500.0,0.00033972,2]
[310156498,1704384676504,-500.0,0.00033972,2]
[310156499,1704384676513,-500.0,0.00033972,2]
[310156500,1704384676523,-1248.14,0.00033972,2]
[310156501,1704384676532,-7320.87,0.00033972,2]
[310156502,1704384676541,-500.0,0.00033972,2]
[310156503,1704384676551,-500.0,0.00033972,2]
[310156504,1704384676560,-500.0,0.00033972,2]
[310156505,1704384676569,-596.18,0.00033972,2]
[310156506,1704384676581,-1053.44,0.00033972,2]
[310156507,1704384676590,-712.06,0.00033972,2]
[310156508,1704384676600,-583.13,0.00033972,2]
[310156509,1704384676610,-1160.21,0.00033972,2]
[310156510,1704384676619,-1547.86,0.00033972,2]
[310156511,1704384676629,-11509.81,0.00033972,2]
[310156512,1704384676640,-500.0,0.00033972,2]
[310156513,1704384676650,-4480.87,0.00033972,2]
[310156514,1704384676659,-500.0,0.00033972,2]
[310156515,1704384676669,-9191.26,0.00033972,2]
[310156516,1704384676679,-983.01,0.00033972,2]
[310156517,1704384676688,-500.0,0.00033972,2]
[310156518,1704384676699,-22757.31,0.00033972,2]
[310156519,1704384676715,-1810.3,0.00033972,2]
[310156520,1704384676724,-500.0,0.00033972,2]
[310156521,1704384676734,-500.0,0.00033972,2]
[310156522,1704384676743,-1146.84,0.00033972,2]
[310156523,1704384676753,-10482.29,0.00033972,2]
[310156524,1704384676764,-500.0,0.00033972,2]
[310156525,1704384676773,-682.62,0.00033972,2]
[310156526,1704384676783,-646.84,0.00033972,2]
[310156527,1704384676793,-500.0,0.00033972,2]
[310156528,1704384676803,-2236.54,0.00033972,2]
[310156529,1704384676813,-5241.12,0.00033972,2]
[310156530,1704384676822,-3000.04,0.00033972,2]
[310156531,1704384676833,-562.73,0.00033972,2]
[310156532,1704384676843,-1267.2,0.00033972,2]
[310156533,1704384676853,-570.19,0.00033972,2]
[310156534,1704384676862,-1044.59,0.00033972,2]
[310156535,1704384676872,-1733.36,0.00033972,2]
[310156536,1704384676881,-506.99,0.00033972,2]
[310156537,1704384676891,-500.0,0.00033972,2]
[310156538,1704384676900,-2344.65,0.00033972,2]
[310156539,1704384676910,-500.0,0.00033972,2]
[310156540,1704384676919,-500.0,0.00033972,2]
[310156541,1704384676929,-500.0,0.00033972,2]
[310156542,1704384676938,-500.0,0.00033972,2]
[310156543,1704384676947,-1148.98,0.00033972,2]
[310156544,1704384676956,-500.0,0.00033972,2]
[310156545,1704384676966,-3957.27,0.00033972,2]
[310156546,1704384676975,-666.95,0.00033972,2]
[310156547,1704384676985,-4906.37,0.00033972,2]
[310156548,1704384676995,-781.77,0.00033972,2]
[310156549,1704384677005,-3313.6,0.00033972,2]
[310156550,1704384677016,-500.0,0.00033972,2]
[310156551,1704384677025,-500.0,0.00033972,2]
[310156552,1704384677035,-500.0,0.00033972,2]
[310156553,1704384677044,-150.0,0.00033972,2]
[310156554,1704384677054,-1046.86,0.00033972,2]
[310156555,1704384677063,-521.63,0.00033972,2]
[310156556,1704384677075,-500.0,0.00033972,2]
[310156557,1704384677086,-3795.31,0.00033972,2]
[310156558,1704384677097,-941.09,0.00033972,2]
[310156559,1704384677107,-744.5,0.00033972,2]
[310156560,1704384677117,-680.9,0.00033972,2]
[310156561,1704384677126,-40011.89,0.00033972,2]
[310156562,1704384677135,-4440.8,0.00033972,2]
[310156563,1704384677146,-3124.54,0.00033972,2]
[310156564,1704384677155,-575.77,0.00033972,2]
[310156565,1704384677165,-500.0,0.00033972,2]
[310156566,1704384677175,-500.0,0.00033972,2]
[310156567,1704384677184,-529.49,0.00033972,2]
[310156568,1704384677194,-500.0,0.00033972,2]
[310156569,1704384677204,-500.0,0.00033972,2]
[310156570,1704384677215,-500.0,0.00033972,2]
[310156571,1704384677224,-500.0,0.00033972,2]
[310156572,1704384677235,-429.16782372,0.00033972,2]
[310156573,1704384677245,-500.0,0.00033972,2]
[310156574,1704384677255,-566.18,0.00033972,2]
[310156575,1704384677265,-500.0,0.00033972,2]
[310156576,1704384677275,-500.0,0.00033972,2]
[310156577,1704384677285,-500.0,0.00033972,2]
[310156578,1704384677294,-500.0,0.00033972,2]
[310156579,1704384677304,-11794.58,0.00033972,2]
[310156580,1704384677313,-500.0,0.00033972,2]
[310156581,1704384677323,-1416.07,0.00033972,2]
[310156582,1704384677335,-500.0,0.00033972,2]
[310156583,1704384677347,-452.78933445,0.00033972,2]
[310156584,1704384677362,-500.0,0.00033972,2]
[310156585,1704384677372,-1935.18,0.00033972,2]
[310156586,1704384677382,-1254.54,0.00033972,2]
[310156587,1704384677391,-500.0,0.00033972,2]
[310156588,1704384677402,-500.0,0.00033972,2]
[310156589,1704384677412,-500.0,0.00033972,2]
[310156590,1704384677422,-500.0,0.00033972,2]
[310156591,1704384677433,-2189.6,0.00033972,2]
[310156592,1704384677443,-500.0,0.00033972,2]
[310156593,1704384677453,-500.0,0.00033972,2]
[310156594,1704384677463,-500.0,0.00033972,2]
[310156595,1704384677473,-1093.1,0.00033972,2]
[310156596,1704384677483,-588.82753242,0.00033972,2]
[310156597,1704384677494,-746.5,0.00033972,2]
[310156598,1704384677504,-500.0,0.00033972,2]
[310156599,1704384677514,-1922.89,0.00033972,2]
[310156600,1704384677523,-500.0,0.00033972,2]
[310156601,1704384677533,-500.0,0.00033972,2]
[310156602,1704384677543,-599.82696967,0.00033972,2]
[310156603,1704384677552,-500.0,0.00033972,2]
[310156604,1704384677563,-3029.2,0.00033972,2]
[310156605,1704384677573,-1065.96,0.00033972,2]
[310156606,1704384677586,-1007.95,0.00033972,2]
[310156607,1704384677595,-11096.0,0.00033972,2]
[310156608,1704384677606,-500.0,0.00033972,2]
[310156609,1704384677616,-747.54,0.00033972,2]
[310156610,1704384677626,-760.32,0.00033972,2]
[310156611,1704384677635,-12156.16,0.00033972,2]
[310156612,1704384677645,-500.0,0.00033972,2]
[310156613,1704384677654,-834.78,0.00033972,2]
[310156614,1704384677664,-1718.28,0.00033972,2]
[310156615,1704384677674,-611.3,0.00033972,2]
[310156616,1704384677684,-697.33,0.00033972,2]
[310156617,1704384677694,-1413.99,0.00033972,2]
[310156618,1704384677703,-697.67,0.00033972,2]
[310156619,1704384677713,-1163.39,0.00033972,2]
[310156620,1704384677723,-1281.58,0.00033972,2]
[310156621,1704384677733,-520.32,0.00033972,2]
[310156622,1704384677744,-883.92,0.00033972,2]
[310156623,1704384677753,-500.0,0.00033972,2]
[310156624,1704384677763,-1053.47,0.00033972,2]
[310156625,1704384677773,-726.31,0.00033972,2]
[310156626,1704384677782,-773.87,0.00033972,2]
[310156627,1704384677791,-3994.67,0.00033972,2]
[310156628,1704384677801,-500.0,0.00033972,2]
[310156629,1704384677810,-891.04,0.00033972,2]
[310156630,1704384677820,-528.67,0.00033972,2]
[310156631,1704384677832,-902.18,0.00033972,2]
[310156632,1704384677841,-2976.44,0.00033972,2]
[310156633,1704384677851,-1129.74,0.00033972,2]
[310156634,1704384677861,-500.0,0.00033972,2]
[310156635,1704384677871,-500.0,0.00033972,2]
[310156636,1704384677881,-8714.16,0.00033972,2]
[310156637,1704384677890,-709.87,0.00033972,2]
[310156638,1704384677901,-500.0,0.00033972,2]
[310156639,1704384677910,-573.28,0.00033972,2]
[310156640,1704384677920,-617.6,0.00033972,2]
[310156641,1704384677930,-539.92,0.00033972,2]
[310156642,1704384677940,-500.0,0.00033972,2]
[310156643,1704384677950,-2375.82,0.00033972,2]
[310156644,1704384677960,-2912.75,0.00033972,2]
[310156645,1704384677970,-500.0,0.00033972,2]
[310156646,1704384677980,-500.0,0.00033972,2]
[310156647,1704384677990,-880.41,0.00033972,2]
[310156648,1704384678000,-500.0,0.00033972,2]
[310156649,1704384678010,-990.05,0.00033972,2]
[310156650,1704384678020,-712.84,0.00033972,2]
[310156651,1704384678031,-500.0,0.00033972,2]
[310156652,1704384678041,-500.0,0.00033972,2]
[310156653,1704384678052,-704.89,0.00033972,2]
[310156654,1704384678063,-1899.71,0.00033972,2]
[310156655,1704384678074,-1360.68,0.00033972,2]
[310156656,1704384678091,-1752.91,0.00033972,2]
[310156657,1704384678102,-846.97,0.00033972,2]
[310156658,1704384678113,-500.0,0.00033972,2]
[310156659,1704384678124,-500.0,0.00033972,2]
[310156660,1704384678136,-4094.39,0.00033972,2]
[310156661,1704384678146,-500.0,0.00033972,2]
[310156662,1704384678156,-1446.57,0.00033972,2]
[310156663,1704384678167,-561.91,0.00033972,2]
[310156664,1704384678177,-1589.28,0.00033972,2]
[310156665,1704384678187,-500.0,0.00033972,2]
[310156666,1704384678198,-1546.98,0.00033972,2]
[310156667,1704384678209,-500.0,0.00033972,2]
[310156668,1704384678220,-834.84,0.00033972,2]
[310156669,1704384678230,-500.0,0.00033972,2]
[310156670,1704384678241,-1093.14,0.00033972,2]
[310156671,1704384678251,-564.13,0.00033972,2]
[310156672,1704384678262,-2073.94,0.00033972,2]
[310156673,1704384678272,-1945.09,0.00033972,2]
[310156674,1704384678282,-893.8,0.00033972,2]
[310156675,1704384678292,-900.7,0.00033972,2]
[310156676,1704384678302,-12496.39,0.00033972,2]
[310156677,1704384678313,-561.96,0.00033972,2]
[310156678,1704384678323,-1450.8,0.00033972,2]
[310156679,1704384678336,-514.0,0.00033972,2]
[310156680,1704384678348,-500.0,0.00033972,2]
[310156681,1704384678363,-500.0,0.00033972,2]
[310156682,1704384678374,-1205.79,0.00033972,2]
[310156683,1704384678384,-500.0,0.00033972,2]
[310156684,1704384678395,-621.58,0.00033972,2]
[310156685,1704384678405,-500.0,0.00033972,2]
[310156686,1704384678415,-881.27,0.00033972,2]
[310156687,1704384678424,-10382.29,0.00033972,2]
[310156688,1704384678434,-3417.84,0.00033972,2]
[310156689,1704384678446,-2270.39,0.00033972,2]
[310156690,1704384678457,-500.0,0.00033972,2]
[310156691,1704384678469,-578.21,0.00033972,2]
[310156692,1704384678479,-987.12,0.00033972,2]
[310156693,1704384678489,-552.04,0.00033972,2]
[310156694,1704384678499,-1396.67,0.00033972,2]
[310156695,1704384678510,-656.43,0.00033972,2]
[310156696,1704384678521,-940.22,0.00033972,2]
[310156697,1704384678531,-500.0,0.00033972,2]
[310156698,1704384678541,-1079.52,0.00033972,2]
[310156699,1704384678550,-1439.1,0.00033972,2]
[310156700,1704384678560,-500.0,0.00033972,2]
[310156701,1704384678570,-500.0,0.00033972,2]
[310156702,1704384678583,-1088.28,0.00033972,2]
[310156703,1704384678593,-5839.49,0.00033972,2]
[310156704,1704384678602,-500.0,0.00033972,2]
[310156705,1704384678612,-1535.77,0.00033972,2]
[310156706,1704384678621,-1904.93,0.00033972,2]
[310156707,1704384678631,-500.0,0.00033972,2]
[310156708,1704384678641,-1236.96,0.00033972,2]
[310156709,1704384678651,-500.0,0.00033972,2]
[310156710,1704384678661,-500.0,0.00033972,2]
[310156711,1704384678671,-3487.16,0.00033972,2]
[310156712,1704384678681,-4880.8,0.00033972,2]
[310156713,1704384678690,-568.13,0.00033972,2]
[310156714,1704384678700,-745.3,0.00033972,2]
[310156715,1704384678710,-809.18,0.00033972,2]
[310156716,1704384678720,-2004.58,0.00033972,2]
[310156717,1704384678730,-8885.11,0.00033972,2]
[310156718,1704384678740,-1186.38,0.00033972,2]
[310156719,1704384678750,-500.0,0.00033972,2]
[310156720,1704384678760,-500.0,0.00033972,2]
[310156721,1704384678770,-1779.45,0.00033972,2]
[310156722,1704384678780,-1353.33,0.00033972,2]